bitfinex-derivatives/quotes_BTCF0:USTF0_20250313
["timestamp","ask_amount","ask_price","bid_price","bid_amount"]
[1741879258875,0.3051785,81639.0,81638.0,0.25897364]
[1741879259072,0.183666,81639.0,81638.0,0.25897364]
[1741879259675,0.1255125,81639.0,81638.0,0.25897364]
[1741879259873,0.003,81639.0,81638.0,0.25897364]
[1741879260271,0.03450836,81648.0,81638.0,0.54419909]
[1741879260579,0.39398379,81684.0,81667.0,0.1224705]
[1741879260580,0.43348777,81668.0,81667.0,0.1224705]
[1741879260774,0.37224767,81668.0,81667.0,0.1224705]
[1741879261278,0.244984,81654.0,81653.0,0.14376]
[1741879261473,0.0612368,81665.0,81659.0,0.00018367]
[1741879261666,0.0612382,81663.0,81657.0,0.061242]
[1741879261977,0.1224885,81655.0,81654.0,0.00018367]
[1741879262169,0.2169,81662.0,81654.0,0.00018367]
[1741879262365,0.1837281,81660.0,81659.0,0.1224795]
[1741879262566,0.0612405,81660.0,81659.0,0.1224795]
[1741879262772,0.1224746,81665.0,81664.0,0.1837087]
[1741879263477,0.0612359,81667.0,81664.0,0.0612367]
[1741879263670,0.37224507,81668.0,81667.0,0.1224705]
[1741879263875,0.24977457,81668.0,81667.0,0.1224705]
[1741879264188,0.24977457,81668.0,81667.0,0.2313705]
[1741879264984,0.37224357,81668.0,81667.0,0.2313705]
[1741879265165,0.47914357,81668.0,81667.0,0.1089]
[1741879265368,0.24977457,81668.0,81667.0,0.2313705]
[1741879265676,0.37224357,81668.0,81667.0,0.2313705]
[1741879266282,0.24977457,81668.0,81654.0,0.00018367]
[1741879266476,0.1224885,81655.0,81654.0,0.00018367]
[1741879266672,0.39398379,81655.0,81610.0,0.17518733]
[1741879266868,0.17518733,81651.0,81633.0,0.1225159]
[1741879267073,0.1837849,81636.0,81635.0,0.183771]
[1741879267280,0.0612583,81637.0,81620.0,0.17518733]
[1741879267581,0.183806,81626.0,81625.0,0.0612637]
[1741879267780,0.245074,81626.0,81625.0,0.0612637]
[1741879267978,0.061268,81626.0,81625.0,0.0612637]
[1741879268377,0.0612632,81630.0,81624.0,0.1078]
[1741879268378,0.0612519,81645.0,81633.0,0.1225215]
[1741879268580,0.0612563,81639.0,81633.0,0.1225215]
[1741879268883,0.12270367,81634.0,81633.0,0.1225215]
[1741879269476,0.00018367,81634.0,81633.0,0.1225215]
[1741879269779,0.00018367,81634.0,81633.0,0.1245215]
[1741879270282,0.00018367,81634.0,81633.0,0.1225215]
[1741879270487,0.00018367,81634.0,81633.0,0.13241896]
[1741879270882,0.00018367,81634.0,81633.0,0.13341896]
[1741879271088,0.00018367,81634.0,81633.0,0.56948449]
[1741879271381,0.00018367,81634.0,81633.0,0.55958703]
[1741879271579,0.12270367,81634.0,81633.0,0.55958703]
[1741879272083,0.00018367,81634.0,81633.0,0.55958703]
[1741879272385,0.12270367,81634.0,81633.0,0.56058703]
[1741879272585,0.00018367,81634.0,81633.0,0.56058703]
[1741879272880,0.122506,81644.0,81643.0,0.1225065]
[1741879273271,0.0612472,81652.0,81646.0,0.0612502]
[1741879273480,0.122505,81644.0,81643.0,0.01363006]
[1741879273685,0.122505,81644.0,81643.0,0.13613656]
[1741879273984,0.061251,81646.0,81642.0,0.2231065]
[1741879274177,0.00018367,81652.0,81642.0,0.2231065]
[1741879274178,0.1837502,81648.0,81647.0,0.1225005]
[1741879274372,0.1837502,81648.0,81642.0,0.2231065]
[1741879274373,0.12267667,81652.0,81651.0,0.1224945]
[1741879274782,0.1224945,81651.0,81650.0,0.1035]
[1741879275084,0.0612532,81643.0,81638.0,0.0612568]
[1741879275278,0.1837642,81641.0,81640.0,0.1225095]
[1741879275483,0.122517,81636.0,81635.0,0.18395817]
[1741879276272,0.2401731,81636.0,81635.0,0.18395817]
[1741879276674,0.2401731,81636.0,81635.0,0.00018367]
[1741879277083,0.2401731,81636.0,81635.0,0.12270217]
[1741879277383,0.001,81641.0,81640.0,0.122511]
[1741879277689,0.1235095,81641.0,81640.0,0.122511]
[1741879277981,0.001,81641.0,81640.0,0.122511]
[1741879278496,0.00018367,81652.0,81638.0,0.14216]
[1741879278788,0.00018367,81652.0,81651.0,0.1224945]
[1741879278980,0.12267667,81652.0,81651.0,0.1224945]
[1741879279485,0.12267667,81652.0,81651.0,0.1361534]
[1741879279683,0.12267667,81652.0,81651.0,0.14888084]
[1741879280290,0.00218367,81652.0,81651.0,0.14888084]
[1741879280483,0.1224864,81657.0,81651.0,0.14888084]
[1741879280484,0.13138024,81662.0,81651.0,0.29076084]
[1741879280676,0.13138024,81662.0,81658.0,0.0612417]
[1741879280881,0.0612448,81658.0,81657.0,0.1837223]
[1741879281077,0.2112,81661.0,81657.0,0.1837223]
[1741879281078,0.3336795,81661.0,81660.0,0.122481]
[1741879281276,0.2112,81661.0,81660.0,0.122481]
[1741879281479,0.12430966,81666.0,81665.0,0.1224735]
[1741879281980,0.1837161,81664.0,81663.0,0.1224755]
[1741879282285,0.0612381,81664.0,81663.0,0.1224755]
[1741879282485,0.1673381,81664.0,81663.0,0.1224755]
[1741879282685,0.1061,81664.0,81663.0,0.1224755]
[1741879282986,0.12730966,81666.0,81665.0,0.1224735]
[1741879283183,0.00483766,81666.0,81605.0,0.03589756]
[1741879283505,0.00483766,81666.0,81588.0,0.03499258]
[1741879283506,0.1837313,81657.0,81656.0,0.122487]
[1741879283685,0.12249,81655.0,81654.0,0.1224887]
[1741879283881,0.12249,81655.0,81644.0,0.0612524]
[1741879283882,0.1224915,81653.0,81644.0,0.0612524]
[1741879284088,0.113,81654.0,81636.0,0.22011468]
[1741879284290,0.1225155,81637.0,81636.0,0.34263168]
[1741879285190,0.3329155,81637.0,81636.0,0.5969748]
[1741879285591,0.3329155,81637.0,81636.0,0.61087784]
[1741879285793,0.2104,81637.0,81636.0,0.61087784]
[1741879285987,0.00018367,81645.0,81636.0,0.48836084]
[1741879286287,0.104,81644.0,81643.0,0.1225065]
[1741879286488,0.00018367,81645.0,81644.0,0.122505]
[1741879286691,0.14228,81676.0,81656.0,0.122487]
[1741879286895,0.1244855,81657.0,81656.0,0.122487]
[1741879287083,0.1837254,81659.0,81658.0,0.122484]
[1741879287388,0.01254277,81661.0,81660.0,0.122481]
[1741879287585,0.1131,81661.0,81660.0,0.122481]
[1741879287786,0.061227,81678.0,81665.0,0.1224735]
[1741879288088,0.00018367,81669.0,81668.0,0.122469]
[1741879288394,0.12265117,81669.0,81668.0,0.122469]
[1741879288694,0.12265117,81669.0,81668.0,0.231169]
[1741879289396,0.00018367,81669.0,81668.0,0.24509588]
[1741879289994,0.24977457,81671.0,81670.0,0.122466]
[1741879290693,0.24977457,81671.0,81670.0,0.13479964]
[1741879291004,0.24977457,81671.0,81670.0,0.16061364]
[1741879291596,0.1224466,81683.0,81682.0,0.1836683]
[1741879291791,0.1074,81684.0,81683.0,0.1224465]
[1741879292096,0.1074,81684.0,81683.0,0.3367465]
[1741879292293,0.229845,81684.0,81683.0,0.3367465]
[1741879293092,0.233845,81684.0,81683.0,0.3367465]
[1741879293795,0.236845,81684.0,81683.0,0.3367465]
[1741879294395,0.129445,81684.0,81683.0,0.3367465]
[1741879298005,1e-07,81684.0,81683.0,0.34948265]
[1741879298304,0.235124,81698.0,81697.0,0.1224255]
[1741879298998,0.1,81700.0,81699.0,0.1224225]
[1741879299295,0.1,81700.0,81699.0,0.14925612]
[1741879299501,0.2178,81709.0,81699.0,0.14925612]
[1741879299502,0.1127,81709.0,81708.0,0.122409]
[1741879299799,0.1662933,81723.0,81722.0,0.122388]
[1741879299995,0.3367866,81723.0,81722.0,0.122388]
[1741879300195,0.00064,81756.0,81730.0,0.1223746]
[1741879300396,0.1051,81735.0,81731.0,0.2248746]
[1741879300597,0.00183596,81740.0,81731.0,0.2248746]
[1741879300892,0.14108,81761.0,81731.0,0.2248746]
[1741879300893,0.0611795,81742.0,81731.0,0.2387581]
[1741879301095,0.1223615,81740.0,81731.0,0.2387581]
[1741879301301,0.1662795,81742.0,81731.0,0.2387581]
[1741879301302,0.45933363,81741.0,81731.0,0.2387581]
[1741879301502,0.1223693,81735.0,81731.0,0.3338746]
[1741879301702,0.39815373,81741.0,81731.0,0.3338746]
[1741879302208,0.0611801,81741.0,81740.0,0.1223611]
[1741879302403,0.1093,81741.0,81740.0,0.2634411]
[1741879302604,0.2316596,81741.0,81740.0,0.2634411]
[1741879302907,0.1093,81741.0,81740.0,0.2634411]
[1741879303307,0.173569,81756.0,81740.0,0.14108]
[1741879303504,0.1835301,81749.0,81748.0,0.122343]
[1741879303702,0.2316446,81751.0,81750.0,0.1223461]
[1741879304201,0.1223476,81749.0,81748.0,0.1032]
[1741879304406,0.1223476,81749.0,81746.0,0.2633918]
[1741879304598,0.1223506,81747.0,81746.0,0.14104]
[1741879304805,0.1223686,81736.0,81735.0,0.1223674]
[1741879305008,0.1223701,81734.0,81733.0,0.3331709]
[1741879305307,0.0611842,81736.0,81732.0,0.00018355]
[1741879305308,0.1223716,81733.0,81732.0,0.00018355]
[1741879305499,0.2316716,81733.0,81732.0,0.00018355]
[1741879305695,0.2316716,81733.0,81732.0,0.12255665]
[1741879306608,0.1093,81733.0,81732.0,0.12255665]
[1741879306999,0.00110761,81733.0,81732.0,0.12255665]
[1741879307202,0.183528,81749.0,81748.0,0.0611724]
[1741879307396,0.2633823,81753.0,81752.0,0.1223431]
[1741879307709,0.1082,81759.0,81750.0,0.0611723]
[1741879307906,0.1223446,81751.0,81750.0,0.1223438]
[1741879308210,0.1223446,81751.0,81750.0,0.0611715]
[1741879308414,0.1223476,81749.0,81748.0,0.0611738]
[1741879308611,0.1223536,81745.0,81744.0,0.1097]
[1741879308803,0.061173,81751.0,81738.0,0.105]
[1741879308804,0.0611797,81742.0,81738.0,0.105]
[1741879309005,0.1223701,81734.0,81733.0,0.4342932]
[1741879309202,0.0611821,81738.0,81735.0,0.1223686]
[1741879309505,0.2254656,81737.0,81736.0,0.2320671]
[1741879309901,0.2254656,81737.0,81736.0,0.1097]
[1741879310109,0.1223716,81733.0,81732.0,0.12255665]
[1741879310712,0.1223716,81733.0,81732.0,0.00018355]
[1741879311010,0.225467,81737.0,81736.0,0.1223671]
[1741879311202,0.1031,81737.0,81736.0,0.1223671]
[1741879311405,0.2254656,81737.0,81736.0,0.2251671]
[1741879311703,0.1835566,81735.0,81734.0,0.1223692]
[1741879312608,0.1223716,81733.0,81732.0,0.00018355]
[1741879314315,0.1223716,81733.0,81732.0,5e-08]
[1741879314611,0.122418,81702.0,81701.0,0.2269195]
[1741879314910,0.061205,81708.0,81697.0,0.141]
[1741879314911,0.122424,81698.0,81697.0,0.3653242]
[1741879315108,0.122427,81696.0,81695.0,0.1045]
[1741879315310,0.122433,81692.0,81691.0,0.21982883]
[1741879315515,0.1224465,81683.0,81682.0,0.3668578]
[1741879315704,0.2637265,81683.0,81682.0,0.3668578]
[1741879315901,0.2637265,81683.0,81682.0,0.4893058]
[1741879316307,0.2637265,81683.0,81682.0,0.3668578]
[1741879316506,0.1224465,81683.0,81682.0,0.3668578]
[1741879317916,0.1244465,81683.0,81682.0,0.3668578]
[1741879318606,0.2320465,81683.0,81682.0,0.3668578]
[1741879319008,0.1116,81683.0,81682.0,0.3668578]
[1741879319212,0.1116,81683.0,81682.0,0.122448]
[1741879319411,0.1836846,81678.0,81677.0,0.1836753]
[1741879319611,0.2360477,81683.0,81682.0,0.122448]
[1741879319826,0.006,81683.0,81682.0,0.122448]
[1741879320317,0.00183691,81700.0,81699.0,0.1224225]
[1741879320519,0.1052,81714.0,81713.0,0.1224015]
[1741879320814,0.2326776,81729.0,81728.0,0.1223791]
[1741879321019,0.3378776,81729.0,81728.0,0.1223791]
[1741879321212,0.21618713,81737.0,81729.0,0.1223776]
[1741879321415,0.30253204,81730.0,81729.0,0.2254776]
[1741879321616,0.18015594,81730.0,81729.0,0.2254776]
[1741879321810,0.30253204,81730.0,81729.0,0.2254776]
[1741879322621,0.30253204,81730.0,81729.0,0.1031]
[1741879323115,0.18015594,81730.0,81729.0,0.2254776]
[1741879323315,0.1223596,81741.0,81740.0,0.2447151]
[1741879323715,0.1103,81749.0,81746.0,0.1223521]
[1741879323716,0.0611738,81749.0,81746.0,0.1223521]
[1741879323906,0.0611729,81751.0,81746.0,0.1223521]
[1741879324106,0.14104,81759.0,81746.0,0.1223521]
[1741879324316,0.0611734,81750.0,81746.0,0.1223521]
[1741879324623,0.1115,81749.0,81746.0,0.1223521]
[1741879324918,0.2196,81749.0,81746.0,0.1223521]
[1741879325314,0.1241865,81747.0,81746.0,0.1223521]
[1741879325710,0.1241865,81747.0,81745.0,0.1049]
[1741879325711,0.0018359,81747.0,81745.0,0.1049]
[1741879325916,0.3419521,81746.0,81745.0,0.1049]
[1741879326116,0.3419521,81746.0,81745.0,0.2272536]
[1741879326812,0.3419521,81746.0,81745.0,0.1049]
[1741879327012,0.3419521,81746.0,81745.0,0.2272536]
[1741879327214,0.3419521,81746.0,81745.0,0.1049]
[1741879327525,0.1223626,81739.0,81738.0,0.00018355]
[1741879328516,0.3278626,81739.0,81738.0,0.12254765]
[1741879328724,0.3278626,81739.0,81738.0,0.00018355]
[1741879329218,0.3278626,81739.0,81738.0,0.12254765]
[1741879329819,0.3278626,81739.0,81738.0,0.00018355]
[1741879330123,0.122388,81722.0,81721.0,0.1064]
[1741879330725,0.122388,81722.0,81711.0,0.141]
[1741879330726,0.1224045,81711.0,81704.0,0.0612073]
[1741879330929,0.122412,81706.0,81705.0,0.1064]
[1741879331218,0.122412,81706.0,81705.0,0.2288135]
[1741879331415,0.122412,81706.0,81705.0,0.1064]
[1741879332229,0.1224165,81703.0,81702.0,0.00018355]
[1741879332409,0.14104,81703.0,81689.0,0.3668578]
[1741879332612,0.122436,81690.0,81689.0,0.3668578]
[1741879332816,0.263476,81690.0,81666.0,0.1078]
[1741879333017,0.122445,81684.0,81669.0,0.1017]
[1741879333319,0.118445,81684.0,81681.0,0.0612241]
[1741879333525,0.0612287,81680.0,81677.0,0.1224525]
[1741879333725,0.1224525,81679.0,81678.0,0.3360525]
[1741879333924,0.2195,81689.0,81678.0,0.2136]
[1741879334129,0.1836747,81683.0,81682.0,0.122448]
[1741879334730,0.1224495,81682.0,81681.0,0.122449]
[1741879334919,0.1224495,81682.0,81681.0,0.2136]
[1741879335126,0.122457,81676.0,81674.0,0.2343593]
[1741879335427,0.122457,81676.0,81675.0,0.10188355]
[1741879335826,0.122457,81676.0,81675.0,0.33624205]
[1741879336128,0.1684243,81682.0,81675.0,0.33624205]
[1741879336129,0.001,81684.0,81683.0,0.1224465]
[1741879336430,0.122445,81684.0,81683.0,0.1224465]
[1741879336620,0.1836549,81690.0,81689.0,0.1224345]
[1741879336931,0.17518733,81730.0,81691.0,0.1224345]
[1741879337118,0.01224016,81701.0,81691.0,0.1224345]
[1741879337322,0.1224315,81693.0,81691.0,0.2290345]
[1741879337527,0.12261655,81692.0,81691.0,0.2290345]
[1741879338422,0.00018355,81692.0,81691.0,0.2290345]
[1741879338720,0.00018355,81692.0,81691.0,0.2320345]
[1741879338922,0.00018355,81692.0,81691.0,0.3730745]
[1741879339319,0.00018355,81692.0,81691.0,0.3760745]
[1741879339517,0.00018355,81692.0,81691.0,0.4849745]
[1741879339832,0.10809001,81703.0,81702.0,0.122418]
[1741879339833,0.23050651,81703.0,81702.0,0.122418]
[1741879340728,0.1224165,81703.0,81702.0,0.122418]
[1741879341132,0.061207,81705.0,81702.0,0.122418]
[1741879341333,0.061207,81705.0,81704.0,0.122415]
[1741879341828,0.061207,81705.0,81704.0,0.332915]
[1741879342028,0.00018355,81711.0,81710.0,0.122406]
[1741879342625,0.12258805,81711.0,81710.0,0.122406]
[1741879342934,0.12258805,81711.0,81710.0,0.326506]
[1741879343321,0.12458805,81711.0,81710.0,0.326506]
[1741879344433,0.12258805,81711.0,81710.0,0.326506]
[1741879344628,0.12258805,81711.0,81710.0,0.327506]
[1741879345029,0.00118355,81711.0,81710.0,0.327506]
[1741879346236,0.12358805,81711.0,81710.0,0.326506]
[1741879346628,0.12458805,81711.0,81710.0,0.326506]
[1741879346830,0.12458805,81711.0,81710.0,0.327506]
[1741879347330,0.12258805,81711.0,81710.0,0.327506]
[1741879347634,0.12258805,81711.0,81710.0,0.328506]
[1741879347834,0.12258805,81711.0,81710.0,0.2061]
[1741879348033,0.12258805,81711.0,81710.0,0.328506]
[1741879349531,0.12258805,81711.0,81710.0,0.327506]
[1741879349732,0.00118355,81711.0,81710.0,0.326506]
[1741879349937,0.12358805,81711.0,81710.0,0.326506]
[1741879350127,0.12358805,81711.0,81710.0,0.2041]
[1741879350324,0.12358805,81711.0,81710.0,0.326506]
[1741879350528,0.12458805,81711.0,81710.0,0.326506]
[1741879350731,0.00218355,81711.0,81710.0,0.326506]
[1741879351240,0.12458805,81711.0,81710.0,0.326506]
[1741879351429,0.12258805,81711.0,81710.0,0.326506]
[1741879351634,0.12458805,81711.0,81710.0,0.326506]
[1741879352831,0.00218355,81711.0,81710.0,0.326506]
[1741879353030,0.00183633,81730.0,81710.0,0.326506]
[1741879353231,0.2129,81729.0,81720.0,0.122391]
[1741879353426,0.23047951,81721.0,81720.0,0.122391]
[1741879353626,0.23047951,81721.0,81720.0,0.327791]
[1741879354432,0.43817951,81721.0,81720.0,0.327791]
[1741879355141,0.43917951,81721.0,81720.0,0.1026]
[1741879355331,0.1224,81714.0,81713.0,0.2272015]
[1741879355532,0.1224,81714.0,81713.0,0.1048]
[1741879355731,0.3301,81714.0,81713.0,0.2272015]
[1741879356338,0.3301,81714.0,81712.0,0.10968355]
[1741879356339,0.1224015,81713.0,81712.0,0.00018355]
[1741879356843,0.9153,81713.0,81670.0,0.31618733]
[1741879357143,0.122463,81674.0,81673.0,0.2449074]
[1741879357641,0.1037,81677.0,81676.0,0.122457]
[1741879357943,0.2261555,81677.0,81676.0,0.122457]
[1741879358644,0.1037,81677.0,81676.0,0.122457]
[1741879358843,0.12246,81674.0,81673.0,0.1370387]
[1741879359548,0.12246,81674.0,81673.0,0.0145773]
[1741879359846,0.13365467,81674.0,81673.0,0.1370388]
[1741879360041,0.13265467,81674.0,81673.0,0.0125773]
[1741879360242,0.13265467,81674.0,81673.0,0.1224615]
[1741879360452,0.01119467,81674.0,81673.0,0.1224615]
[1741879360947,0.13365467,81674.0,81673.0,0.1264615]
[1741879361142,0.13365467,81674.0,81673.0,0.004]
[1741879361938,0.13365467,81674.0,81673.0,0.1389975]
[1741879362740,0.13365467,81674.0,81673.0,0.2466975]
[1741879362938,0.13365467,81674.0,81673.0,0.124236]
[1741879363335,0.13365467,81674.0,81673.0,0.016536]
[1741879364346,0.34765467,81674.0,81673.0,0.016536]
[1741879364653,0.34765467,81674.0,81673.0,0.1264615]
[1741879364834,0.34765467,81674.0,81673.0,0.004]
[1741879365035,0.34765467,81674.0,81673.0,0.1264615]
[1741879366742,0.34765467,81674.0,81673.0,0.004]
[1741879366941,0.1224675,81670.0,81669.0,0.1224674]
[1741879367151,0.13366217,81670.0,81669.0,0.1224674]
[1741879367343,0.33956217,81670.0,81669.0,0.1224674]
[1741879367544,0.33956217,81670.0,81669.0,0.2290674]
[1741879367754,0.21709467,81670.0,81669.0,0.2290674]
[1741879368045,0.01119467,81670.0,81669.0,0.2290674]
[1741879368253,0.10829775,81676.0,81675.0,0.1224585]
[1741879368447,0.24191002,81676.0,81675.0,0.1224585]
[1741879368647,0.11945302,81676.0,81674.0,0.2253589]
[1741879368848,0.10829775,81676.0,81675.0,0.1224585]
[1741879369239,0.10829775,81676.0,81675.0,0.3340585]
[1741879369845,0.23075475,81676.0,81675.0,0.3340585]
[1741879370250,0.2825798,81685.0,81680.0,0.122451]
[1741879370251,0.10829775,81681.0,81680.0,0.122451]
[1741879370658,0.23074725,81681.0,81680.0,0.122451]
[1741879371653,0.122457,81676.0,81675.0,0.3350582]
[1741879371854,0.0612277,81678.0,81675.0,0.2126]
[1741879372048,0.0612277,81678.0,81677.0,0.1224555]
[1741879372451,0.122457,81676.0,81675.0,0.2126]
[1741879372651,0.122457,81676.0,81675.0,0.2116]
[1741879373153,0.326657,81676.0,81675.0,0.2116]
[1741879373456,0.325657,81676.0,81675.0,0.2116]
[1741879373676,0.1224675,81669.0,81668.0,0.00018355]
[1741879373866,0.1224675,81669.0,81668.0,0.12265255]
[1741879374072,0.1224624,81674.0,81673.0,0.06123]
[1741879374273,0.12262855,81685.0,81684.0,0.122445]
[1741879374466,0.00018355,81685.0,81684.0,0.122445]
[1741879374775,0.12262705,81685.0,81684.0,0.222345]
[1741879374965,0.00018355,81685.0,81684.0,0.326745]
[1741879375165,0.12262705,81685.0,81684.0,0.326745]
[1741879375379,0.00018355,81685.0,81684.0,0.326745]
[1741879375569,0.12362705,81685.0,81684.0,0.326745]
[1741879375973,0.12362705,81685.0,81684.0,0.33939748]
[1741879376167,0.00118355,81685.0,81684.0,0.33939748]
[1741879376372,0.12362705,81685.0,81684.0,0.33939748]
[1741879376675,0.12362705,81685.0,81684.0,0.326745]
[1741879376873,0.12362705,81685.0,81684.0,0.2043]
[1741879377579,0.22342705,81685.0,81684.0,0.2043]
[1741879377782,0.22342705,81685.0,81684.0,0.326745]
[1741879378276,0.22342705,81685.0,81684.0,0.2043]
[1741879378483,0.22342705,81685.0,81684.0,0.326745]
[1741879378879,0.22442705,81685.0,81684.0,0.326745]
[1741879379886,0.22442705,81685.0,81684.0,0.2043]
[1741879380182,0.22442705,81685.0,81684.0,0.326745]
[1741879380583,0.22442705,81685.0,81684.0,0.2043]
[1741879380786,0.22442705,81685.0,81659.0,0.07021943]
[1741879380787,0.122463,81672.0,81668.0,0.00018355]
[1741879381082,0.061233,81670.0,81669.0,0.2224645]
[1741879381283,0.061233,81670.0,81669.0,0.3235645]
[1741879381585,0.1836899,81675.0,81674.0,0.12246]
[1741879381772,0.0612296,81675.0,81674.0,0.12246]
[1741879382176,0.0612296,81675.0,81674.0,0.32576]
[1741879382484,0.2728296,81675.0,81674.0,0.1011]
[1741879382985,0.2116,81675.0,81674.0,0.002]
[1741879383185,0.40794733,81675.0,81674.0,0.002]
[1741879383483,0.40794733,81675.0,81657.0,0.3870189]
[1741879383484,0.122484,81658.0,81657.0,0.3870189]
[1741879383786,0.122484,81658.0,81657.0,0.3257824]
[1741879384384,0.0612356,81667.0,81657.0,0.2033]
[1741879384584,0.1224742,81665.0,81664.0,0.1837087]
[1741879384781,0.06141967,81666.0,81664.0,0.1837087]
[1741879384782,0.00018367,81666.0,81665.0,0.1224735]
[1741879385091,0.00018367,81666.0,81665.0,0.2271735]
[1741879385584,0.14104,81701.0,81681.0,0.1224495]
[1741879385790,0.23074575,81682.0,81681.0,0.1224495]
[1741879386289,0.23074575,81682.0,81676.0,0.24574]
[1741879386290,0.10829775,81682.0,81676.0,0.24574]
[1741879386480,0.3908749,81681.0,81680.0,0.1047]
[1741879386679,0.3908749,81681.0,81680.0,0.227151]
[1741879387690,0.1836749,81681.0,81680.0,0.227151]
[1741879387984,0.14458067,81687.0,81681.0,0.1224495]
[1741879388183,0.14458067,81687.0,81686.0,0.122442]
[1741879388388,0.12262417,81687.0,81686.0,0.122442]
[1741879388585,0.00018367,81687.0,81686.0,0.122442]
[1741879390191,0.00183704,81699.0,81698.0,0.122424]
[1741879390390,0.34353613,81709.0,81708.0,0.122409]
[1741879390685,0.46594363,81709.0,81708.0,0.122409]
[1741879391078,0.122409,81708.0,81707.0,0.23171]
[1741879392076,0.34353613,81709.0,81707.0,0.23171]
[1741879392077,0.34353613,81709.0,81708.0,0.122409]
[1741879392277,0.47870547,81709.0,81708.0,0.1093]
[1741879392982,0.13516934,81709.0,81708.0,0.1093]
[1741879393182,0.1224195,81701.0,81700.0,0.00018367]
[1741879394281,0.1224195,81701.0,81700.0,7e-08]
[1741879394684,0.1224195,81701.0,81700.0,0.12242107]
[1741879395293,0.218,81703.0,81702.0,0.122418]
[1741879395490,0.3404165,81703.0,81702.0,0.122418]
[1741879395882,0.1224195,81701.0,81700.0,7e-08]
[1741879396186,0.1224195,81701.0,81700.0,0.12242107]
[1741879396591,0.1284195,81701.0,81700.0,0.12242107]
[1741879396781,0.1284195,81701.0,81700.0,7e-08]
[1741879396986,0.1284195,81701.0,81700.0,0.12242107]
[1741879397586,0.1284195,81701.0,81700.0,7e-08]
[1741879398102,0.1836836,81680.0,81679.0,0.1224501]
[1741879398393,0.1836836,81680.0,81674.0,0.1076]
[1741879398394,0.1224585,81675.0,81674.0,0.1076]
[1741879398584,0.1224645,81671.0,81670.0,0.1076]
[1741879398785,0.122466,81670.0,81669.0,0.41433987]
[1741879398985,0.223666,81670.0,81669.0,0.29187237]
[1741879399189,0.223666,81670.0,81669.0,0.41433987]
[1741879400198,0.223666,81670.0,81669.0,0.41733987]
[1741879400402,0.122466,81670.0,81669.0,0.42033987]
[1741879400590,0.1607316,81672.0,81669.0,0.42033987]
[1741879400591,0.0995,81672.0,81671.0,0.1224645]
[1741879400789,0.12263917,81678.0,81677.0,0.1224555]
[1741879400990,0.12263917,81678.0,81677.0,0.2307555]
[1741879401291,0.00018367,81678.0,81677.0,0.2307555]
[1741879401692,0.18088185,81682.0,81681.0,0.1224495]
[1741879402589,0.18088185,81682.0,81681.0,0.2221495]
[1741879403594,0.15896746,81694.0,81681.0,0.0997]
[1741879403800,0.15896746,81694.0,81693.0,0.1224315]
[1741879404403,0.14447305,81701.0,81700.0,0.122421]
[1741879405192,0.01220176,81720.0,81717.0,0.1223955]
[1741879405493,0.12423046,81718.0,81717.0,0.1223955]
[1741879405694,0.00183646,81718.0,81717.0,0.1223955]
[1741879406094,0.00183646,81718.0,81717.0,0.2241955]
[1741879406399,0.12823046,81718.0,81717.0,0.2241955]
[1741879406701,0.01183646,81718.0,81717.0,0.2241955]
[1741879407900,0.01183646,81718.0,81717.0,0.1223955]
[1741879408401,0.01183646,81718.0,81717.0,0.2241955]
[1741879408896,0.00583646,81718.0,81717.0,0.2241955]
[1741879409096,0.00183646,81718.0,81717.0,0.2251955]
[1741879410104,0.12423046,81718.0,81717.0,0.2251955]
[1741879410304,0.12423046,81718.0,81717.0,0.2261955]
[1741879410501,0.22413046,81718.0,81717.0,0.2261955]
[1741879410806,0.00183646,81718.0,81717.0,0.2261955]
[1741879412103,0.00183646,81718.0,81717.0,0.2241955]
[1741879412896,0.1223856,81724.0,81723.0,0.1223866]
[1741879413102,0.0611903,81727.0,81726.0,0.1223821]
[1741879413407,0.0611889,81729.0,81728.0,0.1223791]
[1741879413803,0.0121679,81737.0,81736.0,0.1223671]
[1741879414000,0.061179,81742.0,81741.0,0.1223581]
[1741879414202,0.1835453,81740.0,81739.0,0.1223619]
[1741879414605,0.2871453,81740.0,81739.0,0.1223619]
[1741879414999,0.1223761,81731.0,81730.0,0.2447363]
[1741879415199,0.1036,81740.0,81739.0,0.1223626]
[1741879415404,0.004,81742.0,81739.0,0.1223626]
[1741879415605,0.004,81742.0,81741.0,0.1223596]
[1741879415804,0.0611769,81745.0,81741.0,0.1017]
[1741879416009,0.1835341,81745.0,81744.0,0.1223551]
[1741879416607,0.1036,81746.0,81745.0,0.1223536]
[1741879416916,0.1036,81746.0,81745.0,0.3281536]
[1741879417309,0.1005,81761.0,81745.0,0.2058]
[1741879417615,0.1027,81759.0,81758.0,0.1223342]
[1741879417813,0.2250327,81759.0,81758.0,0.1223342]
[1741879419111,0.2260327,81759.0,81758.0,0.1223342]
[1741879419315,0.2260327,81759.0,81758.0,0.2240342]
[1741879419917,0.2270327,81759.0,81758.0,0.2240342]
[1741879421016,0.183505,81758.0,81757.0,0.1223342]
[1741879421520,0.285705,81758.0,81757.0,0.1223342]
[1741879422619,0.287705,81758.0,81757.0,0.1223342]
[1741879423015,0.1663678,81758.0,81757.0,0.1223342]
[1741879423821,0.0641678,81758.0,81757.0,0.1223342]
[1741879424516,0.1677678,81758.0,81757.0,0.1223342]
[1741879424716,0.2747678,81758.0,81757.0,0.1223342]
[1741879424910,0.2767678,81758.0,81757.0,0.1223342]
[1741879425320,0.2747678,81758.0,81757.0,0.1223342]
[1741879425825,0.2126,81758.0,81757.0,0.1223342]
[1741879426016,0.2136,81758.0,81757.0,0.1223342]
[1741879427116,0.3359342,81758.0,81757.0,0.1223342]
[1741879427519,0.2136,81758.0,81757.0,0.1223342]
[1741879427917,0.3359342,81758.0,81757.0,0.1223342]
[1741879428118,0.3339342,81758.0,81757.0,0.1223342]
[1741879428314,0.3359342,81758.0,81757.0,0.1223342]
[1741879428521,0.2136,81758.0,81757.0,0.1223342]
[1741879428928,0.2126,81758.0,81757.0,0.1223342]
[1741879429230,0.3349342,81758.0,81757.0,0.1223342]
[1741879429427,0.3349342,81758.0,81757.0,0.3304342]
[1741879429837,0.3349342,81758.0,81757.0,0.2276342]
[1741879430022,0.1223521,81746.0,81735.0,0.0611841]
[1741879430213,0.0611721,81752.0,81739.0,0.0124695]
[1741879430418,0.2141,81751.0,81750.0,0.1223461]
[1741879430925,0.22641128,81751.0,81750.0,0.1223461]
[1741879431229,0.34875738,81751.0,81750.0,0.1223461]
[1741879431526,0.3364461,81751.0,81750.0,0.1223461]
[1741879432122,0.2141,81751.0,81750.0,0.13506975]
[1741879432320,0.001,81758.0,81757.0,0.1223357]